Cogmind - Beta 10.2 --- EXPLORER MODE // 2020.11.08 @ 22:58:15 // Halloween2020/ForbiddenLore Player: Tenebrous Result: Destroyed by D-53 Grenadier with Mini Grenade Launcher Performance ------------- Evolutions (0) 0 Regions Visited (4) 800 Robots Destroyed (19) 95 Value Destroyed (389) 389 Prototype IDs (0) 0 Alien Tech Used (0) 0 Bonus (300) 300 TOTAL SCORE: 1584 Bonus ------- Aligned with FarCom 300 Cogmind --------- Core Integrity 0/250 Matter 281/300 Energy 100/100 System Corruption 2% Temperature Cool (0) Movement Core (300) Ox5 Location -9/Mines Parts ------- > --- POWER (1) -------- (None) > --- PROPULSION (2) --- (None) > --- UTILITY (3) ------ Large Storage Unit Utility Shielding > --- WEAPON (2) ------- (None) > --- INVENTORY (10) --- Ion Engine Light Ion Engine High-capacity Matter Pod (200) Sensor Array Targeting Computer Targeting Computer Core Shielding Deploy-a-Sentry Peak State ------------ > --- POWER ------------ Light Ion Engine > --- PROPULSION ------- Hover Unit Hover Unit > --- UTILITY ---------- Large Storage Unit Sensor Array Utility Shielding > --- WEAPON ----------- Light Assault Rifle Rocket Launcher > --- INVENTORY -------- Ion Engine Light Ion Engine High-capacity Matter Pod Sensor Array Targeting Computer Targeting Computer Core Shielding Light Assault Rifle Deploy-a-Sentry [Rating: 10] Favorites ----------- Power Light Ion Engine Engine Light Ion Engine Propulsion Hover Unit Treads Light Treads Leg Aluminum Leg Hover Unit Hover Unit Utility Utility Shielding Device Sensor Array Storage Large Storage Unit Protection Utility Shielding Weapon Light Assault Rifle Energy Gun EM Pulse Gun Ballistic Gun Light Assault Rifle Launcher Rocket Launcher Build | -11 -10 -10 -10 -9 ------- Run | Scr Mat Min Exi Min Slots Evolved 1 | . 1 . . . Power . | . . . . . Propulsion . | . . . . . Utility 1 | . 1 . . . Weapon . | . . . . . Parts Attached 17 | . 10 2 . 5 Power 2 | . 2 . . . Engine 2 | . 2 . . . Core . | . . . . . Reactor . | . . . . . Propulsion 7 | . 5 . . 2 Treads 2 | . 2 . . . Leg 1 | . 1 . . . Wheel . | . . . . . Hover 4 | . 2 . . 2 Flight . | . . . . . Utility 2 | . 2 . . . Device 1 | . 1 . . . Storage 1 | . 1 . . . Processor . | . . . . . Hackware . | . . . . . Protection . | . . . . . Artifact . | . . . . . Weapon 6 | . 1 2 . 3 Energy Gun 1 | . 1 . . . Energy Cannon . | . . . . . Ballistic Gun 4 | . . 2 . 2 Ballistic Cannon . | . . . . . Launcher 1 | . . . . 1 Special Weapon . | . . . . . Impact Weapon . | . . . . . Slashing Weapon . | . . . . . Piercing Weapon . | . . . . . Special Melee Weapon . | . . . . . Unidentified Prototypes . | . . . . . Parts Lost 8 | . . . . 8 Power 1 | . . . . 1 Propulsion 2 | . . . . 2 Utility 1 | . . . . 1 Weapon 4 | . . . . 4 Highest Loss Streak 7 | . . . . 7 Average Slot Usage (%) 98 | . 97 100 100 97 Engine 11 | . 12 12 12 11 Treads 1 | . 3 . . . Leg 5 | . 16 . . . Hover 18 | . 4 25 25 24 Device 11 | . 10 12 12 11 Storage 12 | . 12 12 12 12 Protection 12 | . 12 12 12 12 Energy Gun 10 | . 12 12 12 6 Ballistic Gun 12 | . 12 12 12 16 Naked Turns . | . . . . . Heaviest Build 24 | 15 24 24 24 24 Greatest Support 40 | 20 40 12 12 12 Greatest Overweight (x) 5 | . 1 1 1 5 Average Overweight (x) . | . . 1 1 1 Largest Inventory Capacity 10 | . 10 10 10 10 Average Capacity 9 | . 9 10 10 10 Most Carried 10 | . 10 10 10 10 Average Carried 9 | . 9 10 9 9 Final Capacity 10 | 8 10 10 10 10 Final Carried 10 | 7 10 10 10 8 Class Distribution -------------------- 82% | Hacker-Mutant 17% | Hacker-Skirmisher Dominant Class ---------------- Hacker-Mutant | -10/Materials Hacker-Mutant | -10/Mines Hacker-Mutant | -10/Exiles Hacker-Skirmisher | -9/Mines Resources | -11 -10 -10 -10 -9 ----------- Run | Scr Mat Min Exi Min Matter Collected 505 | 190 143 109 . 63 Remotely . | . . . . . Salvage Created 511 | . 244 168 . 99 Parts 28 | . 15 11 . 2 Haulers Intercepted . | . . . . . Recyclers Shooed . | . . . . . Parts Field Recycled . | . . . . . Retrieved Matter . | . . . . . Parts Self-Destructed . | . . . . . Prevented . | . . . . . Kills | -11 -10 -10 -10 -9 ------- Run | Scr Mat Min Exi Min Combat Hostiles Destroyed 19 | . 7 6 . 6 Guns 18 | . 7 6 . 5 AOE 1 | . . . . 1 Classes Destroyed 6 | . 3 . . 3 Worker 2 | . . . . 2 Watcher 3 | . 3 . . . Swarmer 8 | . 4 4 . . Grunt 5 | . 3 2 . . Demolisher 1 | . . . . 1 Assembled 5 | . . . . 5 Best Kill Streak 3 | . 2 2 . 3 Combat Bots Only 2 | . 2 2 . 2 Max Kills in Single Turn 3 | . 1 1 . 3 Gunslinging . | . . . . . Exploded 1 | . . . . 1 Melee . | . . . . . Uniques/NPCs Destroyed . | . . . . . Combat | -11 -10 -10 -10 -9 -------- Run | Scr Mat Min Exi Min Damage Taken 948 | . 191 148 . 609 Core 255 | . 11 62 . 182 Absorbed by Shields . | . . . . . Core Remaining (%) 100 | 100 . . . . Volleys Fired 75 | . 25 15 . 35 Largest 2 | . 2 2 . 2 Hottest 70 | . 70 60 . 60 Shots Fired 133 | . 50 30 . 53 Gun 131 | . 50 30 . 51 Cannon . | . . . . . Launcher 2 | . . . . 2 Special . | . . . . . Kinetic 88 | . 25 15 . 48 Thermal 22 | . 22 . . . Explosive 2 | . . . . 2 Electromagnetic 21 | . 3 15 . 3 Robot Hit Streak 26 | . 17 26 . 21 Robot Miss Streak 2 | . 1 1 . 2 Penetration Max . | . . . . . Secondary Targets 1 | . 1 . . . Max Gunslinging Chain 1 | . 1 . . . Shots Hit Robots 113 | . 42 25 . 46 Core Hits 45 | . 15 9 . 21 Critical Hits 2 | . . 1 . 1 Critical Kills . | . . . . . Critical Parts Destroyed 2 | . . 1 . 1 Melee Attacks . | . . . . . Impact . | . . . . . Slashing . | . . . . . Piercing . | . . . . . Sneak Attacks . | . . . . . Combat Hostiles . | . . . . . Follow-up Attacks . | . . . . . Damage Inflicted 1203 | . 492 254 . 457 Guns 1024 | . 416 254 . 354 Cannons . | . . . . . Explosions 179 | . 76 . . 103 Melee . | . . . . . Ramming . | . . . . . Kinetic 553 | . 127 93 . 333 Thermal 299 | . 299 . . . Explosive 103 | . . . . 103 Electromagnetic 248 | . 66 161 . 21 Impact . | . . . . . Slashing . | . . . . . Piercing . | . . . . . Highest Corruption 2 | . 1 1 1 2 Average Corruption 1 | . 1 1 1 1 Corruption Purged . | . . . . . Effects 8 | . . 2 5 1 Message Errors 2 | . . 1 1 . Energy Discharges 1 | . . . 1 . Data Loss (minor) 4 | . . 1 3 . Targeting Errors 1 | . . . . 1 Overload Shots . | . . . . . Overflow Damage . | . . . . . Projectiles . | . . . . . Explosions . | . . . . . Melee . | . . . . . Knockbacks . | . . . . . Impact . | . . . . . Kinetic . | . . . . . Secondary . | . . . . . Self-Inflicted Damage . | . . . . . Shots . | . . . . . Rammed . | . . . . . Targets Rammed . | . . . . . Kicked . | . . . . . Crushed . | . . . . . Highest Temperature 210 | . 210 165 . 40 Average Temperature 48 | . 65 61 . 11 Received Heat Transfer 239 | . 78 81 . 80 Siege Activations . | . . . . . Robots Corrupted . | . . . . . Combat Hostiles . | . . . . . Parts Fried 1 | . . 1 . . Impact Corruptions . | . . . . . Robots Melted . | . . . . . Combat Hostiles . | . . . . . Parts Melted 1 | . 1 . . . Heat Transferred 766 | . 766 . . . Parts Sabotaged . | . . . . . Parts Stolen . | . . . . . Parts Stripped . | . . . . . Power Chain Reactions 2 | . 2 . . . Missiles Intercepted . | . . . . . Alert | -11 -10 -10 -10 -9 ------- Run | Scr Mat Min Exi Min Peak Influence 150 | . 120 150 . 30 Initial 4 | . . 4 . . Average 31 | . 45 38 . . Maximum Alert Level . | . . . . . Low Security (%) 100 | . 100 100 . 100 Level 1 . | . . . . . Level 2 . | . . . . . Level 3 . | . . . . . Level 4 . | . . . . . Level 5 . | . . . . . High Security . | . . . . . Max Security . | . . . . . Squads Dispatched . | . . . . . Investigation . | . . . . . Extermination . | . . . . . Reinforcement . | . . . . . Assault . | . . . . . Garrison . | . . . . . Intercept . | . . . . . Construction Impeded . | . . . . . Haulers Reinforced . | . . . . . Stealth | -11 -10 -10 -10 -9 --------- Run | Scr Mat Min Exi Min Distress Signals 1 | . . . . 1 Communications Jammed . | . . . . . Distress Signals . | . . . . . Times Spotted 30 | . 11 6 . 13 Peak Tracking Total 9 | . 2 2 . 9 Tactical Retreats 2 | . . . . 2 Traps | -11 -10 -10 -10 -9 ------- Run | Scr Mat Min Exi Min Traps Triggered 3 | . 3 . . . Indirectly . | . . . . . Trap Hack Attempts . | . . . . . Triggered . | . . . . . Disarmed . | . . . . . Reprogrammed . | . . . . . Reused . | . . . . . Traps Extracted . | . . . . . Installed . | . . . . . Triggered . | . . . . . Machines | -11 -10 -10 -10 -9 ---------- Run | Scr Mat Min Exi Min Machines Disabled 1 | . 1 . . . Max in Single Turn 1 | . 1 . . . Machines Sabotaged . | . . . . . Garrisons Compromised . | . . . . . Overloaded Fab Kills . | . . . . . Fab Network Shutdowns . | . . . . . Hacking | -11 -10 -10 -10 -9 --------- Run | Scr Mat Min Exi Min Machines Accessed 8 | . 4 1 3 . Terminals 3 | . 2 1 . . Fabricators . | . . . . . Repair Stations . | . . . . . Recycling Units 2 | . 2 . . . Scanalyzers . | . . . . . Garrison Access . | . . . . . Total Hacks 50 | . 8 2 40 . Successful 50 | . 8 2 40 . Failed . | . . . . . Catastrophic . | . . . . . Database Lockouts . | . . . . . Manual 1 | . . . 1 . Terminals 4 | . 2 2 . . Fabricators . | . . . . . Repair Stations . | . . . . . Recycling Units 6 | . 6 . . . Scanalyzers . | . . . . . Garrison Access . | . . . . . Terminal Hacks 44 | . 2 2 40 . Record 43 | . 1 2 40 . Alert Level 1 | . 1 . . . Fabricator Hacks . | . . . . . Repair Station Hacks . | . . . . . Recycling Unit Hacks 6 | . 6 . . . Process 2 | . 2 . . . Report Inventory 2 | . 2 . . . Retrieve Matter 2 | . 2 . . . Scanalyzer . | . . . . . Garrison Access Hacks . | . . . . . Unauthorized Hacks . | . . . . . Terminals . | . . . . . Fabricators . | . . . . . Repair Stations . | . . . . . Recycling Units . | . . . . . Scanalyzers . | . . . . . Garrison Access . | . . . . . Data Cores Recovered . | . . . . . Used . | . . . . . Hacking Detections 1 | . 1 . . . Full Trace Events . | . . . . . Feedback Events . | . . . . . Feedback Blocked . | . . . . . Robot Schematics Acquired . | . . . . . Robots Built . | . . . . . Matter . | . . . . . Time . | . . . . . Total Robot Build Rating . | . . . . . Part Schematics Acquired . | . . . . . Parts Built . | . . . . . Matter . | . . . . . Time . | . . . . . Total Part Build Rating . | . . . . . Parts Repaired . | . . . . . Time . | . . . . . Parts Recycled . | . . . . . Recycled Matter 20 | . 20 . . . Retrieved Matter 20 | . 20 . . . Retrieved Components . | . . . . . Parts Scanalyzed . | . . . . . Part Schematics Acquired . | . . . . . Parts Damaged . | . . . . . Bothacking | -11 -10 -10 -10 -9 ------------ Run | Scr Mat Min Exi Min Used RIF Installer . | . . . . . Robots Hacked . | . . . . . Non-combat . | . . . . . Combat . | . . . . . Robot Hacks Applied . | . . . . . Relay Couplers Released . | . . . . . Robots Rewired . | . . . . . Allies Hacked . | . . . . . Hacks Repelled . | . . . . . Allies | -11 -10 -10 -10 -9 -------- Run | Scr Mat Min Exi Min Total Allies 3 | . . 3 . . Largest Group 3 | . . 3 3 3 Highest-Rated Group 40 | . . 40 40 40 Highest-Rated Ally 16 | . . 16 16 16 Total Orders . | . . . . . Ally Attacks 17 | . . . . 17 Total Damage 197 | . . . . 197 Kills 3 | . . . . 3 Allies Corrupted . | . . . . . Allies Melted 1 | . . . . 1 Intel | -11 -10 -10 -10 -9 ------- Run | Scr Mat Min Exi Min Robot Analysis Total . | . . . . . Derelict Logs Recovered 2 | . . 1 . 1 Drone Launches . | . . . . . Drone Recoveries . | . . . . . Exploration | -11 -10 -10 -10 -9 ------------- Run | Scr Mat Min Exi Min Turns Passed 3324 | . 1035 891 739 659 Spaces Moved 2467 | 1 674 683 629 480 Core 4 | . . . . 4 Treads 75 | . 75 . . . Legs 440 | 1 439 . . . Wheels . | . . . . . Hover 1948 | . 160 683 629 476 Flight . | . . . . . Fastest Speed 116 | 120 116 116 116 116 Average Speed 121 | 120 134 116 116 117 Slowest Speed 300 | 120 180 116 116 300 Overloaded Moves . | . . . . . Propulsion Burnouts . | . . . . . Robots Hopped . | . . . . . Cave-ins Triggered . | . . . . . Exploration Rate (%) 75 | 2 95 99 94 86 Regions Visited 4 Branch Regions 3 Pre-discovered Areas 3 | . . 1 1 1 Known Exits Taken 4 | 1 1 1 1 . Unknown Exits Taken . | . . . . . Scrap Searched 3 | . . 1 . 2 Spaces Dug . | . . . . . Terrain Destroyed 27 | . 3 . . 24 Melee . | . . . . . Projectile . | . . . . . AOE 27 | . 3 . . 24 Terrain Rammed . | . . . . . Walls Destroyed . | . . . . . Machines Disabled . | . . . . . Actions | -11 -10 -10 -10 -9 --------- Run | Scr Mat Min Exi Min Total 2686 | . 760 754 640 532 Wait 99 | . 32 54 6 7 Move 2463 | . 673 682 628 480 Hop . | . . . . . Pick Up 14 | . 9 . 3 2 Fast Attach 5 | . 5 . . . Attach 3 | . 1 . . 2 Detach . | . . . . . Swap 9 | . 4 2 . 3 Drop 18 | . 11 1 3 3 Fire 75 | . 25 15 . 35 Melee . | . . . . . Ram . | . . . . . Kick . | . . . . . Crush . | . . . . . Escape Stasis . | . . . . . Rewire . | . . . . . Trap . | . . . . . Miscellaneous . | . . . . . Route ------- -11/Scrapyard -10/Materials (discovered 5 exits: *Mat x3 / *Min x2) -10/Mines (discovered 3 exits: *Mat x2 / *Exi) -10/Exiles (discovered 2 exits: *Min x2) -9/Mines (discovered 2 exits: *Mat x2) History --------- Turn | Location | Event 1 | -11/Scrapyard | Identified exit to Materials 1 | -11/Scrapyard | Discovered exit to Materials (range 0) 1 | -11/Scrapyard | Entered Materials 1 | -10/Materials | Evolved 1 slot: Utility x1 308 | -10/Materials | Build established: Hacker-Mutant 436 | -10/Materials | Identified exit to Mines 436 | -10/Materials | Discovered exit to Mines (range 10) 611 | -10/Materials | Identified exit to Materials 611 | -10/Materials | Discovered exit to Materials (range 8) 632 | -10/Materials | Discovered exit to Mines (range 12) 739 | -10/Materials | Discovered exit to Materials (range 16) 874 | -10/Materials | Discovered exit to Materials (range 11) 1036 | -10/Materials | Entered Mines 1183 | -10/Mines | Learned location of Storage (-8) 1452 | -10/Mines | Discovered exit to Materials (range 9) 1615 | -10/Mines | Discovered exit to Materials (range 8) 1695 | -10/Mines | Found a hidden stash of uninstalled traps 1739 | -10/Mines | Deemed a non-threat by the Exiles lab entrance 1739 | -10/Mines | Identified exit to Exiles 1739 | -10/Mines | Discovered exit to Exiles (range 5) 1817 | -10/Mines | Assisted by bots powering up and referring to "LRC-V3" 1927 | -10/Mines | Entered Exiles 1927 | -10/Exiles | Accompanied by 3 allies 1945 | -10/Exiles | Identified exit to Mines 1945 | -10/Exiles | Discovered exit to Mines (range 15) 1977 | -10/Exiles | Met 8R-AWN 1996 | -10/Exiles | Met EX-HEX 2089 | -10/Exiles | Met EX-DEC 2131 | -10/Exiles | Visited The Gauntlet 2291 | -10/Exiles | Learned location of Zion (-6) 2352 | -10/Exiles | Discovered exit to Mines (range 15) 2432 | -10/Exiles | Met EX-BIN 2457 | -10/Exiles | Aligned with FarCom system 2458 | -10/Exiles | Given EX-Vault access code 2515 | -10/Exiles | Opened EX-Vault 2539 | -10/Exiles | Found Deploy-a-Sentry 2565 | -10/Exiles | Warned to stay clear of 0b10 Research branches 2666 | -10/Exiles | Left Exiles lab with Deploy-a-Sentry 2666 | -10/Exiles | Entered Mines 2666 | -9/Mines | Accompanied by 3 allies 2694 | -9/Mines | Received a Rocket Launcher from a helpful Derelict 2965 | -9/Mines | Assembled infested the area 2970 | -9/Mines | Build established: Hacker-Skirmisher 2970 | -9/Mines | Assisted by a Guerilla fighting off Assembled 3142 | -9/Mines | Core integrity fell below 50% 3278 | -9/Mines | Identified exit to Materials 3278 | -9/Mines | Discovered exit to Materials (range 16) 3287 | -9/Mines | Discovered exit to Materials (range 14) 3311 | -9/Mines | Core integrity fell below 20% 3325 | -9/Mines | Destroyed by D-53 Grenadier with Mini Grenade Launcher Last Messages --------------- 03310_ Destroyed Shock Absorption System. 03311_ The unstable cave ceiling collapses. 03311_ Lgt. Ion Engine destroyed. 03311_ System corrupted by crushing effect (+1). 03312_ K-01 Serf collects debris. 03312_ Lgt. Assault Rifle destroyed. 03312_ as-61966 destroyed. 03313_ K-01 Serf collects debris. 03313_ R-06 Scavenger collects Med. Matter Pod. 03314_ The unstable cave ceiling collapses. 03314_ K-01 Serf collects debris. 03314_ R-06 Scavenger collects Sml. Storage Unit. 03315_ The unstable cave ceiling collapses. 03317_ K-01 Serf collects debris. 03318_ The unstable cave ceiling collapses. 03319_ K-01 Serf collects debris. 03319_ R-06 Scavenger collects Wheel. 03321_ K-01 Serf destroyed. 03322_ K-01 Serf collects debris. 03325_ The unstable cave ceiling collapses. Map ----- +----------------------------------------------------+ | ??# ## ????#! ##??????# | | ??# #####%=#???????# | | ??# ###?# # #???????# | | ??# ###?????# # #???##### | | ??## ##???????# # ######?### ## | | ???#### #????????# ?# #?????## # | | ??????## ##????????#??# #?????# # | | ???????# ####????????????# #?????# | | ???????# #???????????????#% #?????# | | ???????# #???????????????# ####### | | ???????# #####???????????# # ## | | ???????# ## ###?????????# | | ???????# ############## ###### | | ???????# % %!% % ##????## | | ???????# ##??????## | | ???????## ################# ##????????# | | ????????###### ####???????## ##?????????? | | ?????????????###??????????# #??????????? | | ???????????????????????##?## !#??????????? | | ??????????????????##### #####!*#??????????? | | ?????????????????## ## ## !%###????????? | | ???????????????### =% #????????? | | ???????????????# # # ### #????????? | | ???????????????# # ### #?????#### | | ??????????????### ## ####### | | ??????????????# = @ ## | | ?????????????# %* r #? | | ?????????????# <= # ## ########? | | ?????????????## ### ##???????? | | ??????????????## ##?# ##???????? | | ???????????????### d #??# #???????? | | ?????????????????## r ##??# #???????? | | ??????????????????# # ??## ##???????? | | ??????????????????# # k ### #????????? | | ?????????????????? k## #????????? | | ?????????????????? # ## ##???????? | | ?????????????????## #?## ##??????? | | ??????????????????### ####??## ##?????? | | ?????????????????????< ??????## #?????? | | ????????????????????? ???????# #?????? | | ?????????????????????"????????# ##?????? | | ??????????????????????????????# /!#??????? | | ??????????????????????????????## %##??????? | | ???????????????????????????????####???????? | | ??????????????????????????????????????????? | | ??????????????????????????????????????????? | | ??????????????????????????????????????????? | | ??????????????????????????????????????????? | | ??????????????????????????????????????????? | | | +----------------------------------------------------+ Best States ------------- Heat Dissipation 25 Energy Generation 10 Energy Capacity 125 Matter Stores 300 Matter Capacity 300 Sight Range 16 Robot Scan Range 10 Terrain Scan Density 10 Resistance: KI 35 Resistance: TH 35 Resistance: EX 35 Resistance: EM 35 Resistance: I 35 Resistance: S 35 Resistance: P 35 Utility Shielding 33 Evasion (%) 40 Recoil Reduction 2 Offensive Hacking 20 Item Schematics ----------------- None Robot Schematics ------------------ None Fabricated ------------ Nothing Alien Tech Used ----------------- None Achievements -------------- None Challenges ------------ None Game ------ Seed GatlingStasisTrap Manual? 0 Play Time 00:28:05 Cumulative 67.9 hours Start 2020.11.08 @ 22:19:36 End 2020.11.08 @ 22:58:15 Sessions 1 Manual Loads 0 Difficulty Explorer Special Mode Halloween2020/ForbiddenLore Game No. 110 Rogue 54 Adventurer 16 Explorer 40 Win Type - Total 0 Types 0/0/0/0/0/0/0/0/0 Lore% 35 Gallery% 51 Achievement% 37 Wizard Run 0 Options --------- ASCII 0 Keyboard 0 Movement Mouse Keybinds 0 Fullscreen 2 Font 24/Proggy Map View 76x50 Tactical HUD 1 Map Filters NONE Filters NONE Steam 1 RUN: aab29c1c-6bc4-4316-8788-8a80a053afb3